fUST/lending_fUST_20250904
["ID","MTS","AMOUNT","RATE_DAILY","PERIOD"]
[383543241,1756981847043,-553.72423143,0.00013698,2]
[383543242,1756981847053,-526.652516,0.00013698,2]
[383543243,1756981847065,-480.0,0.00013698,2]
[383543244,1756981847075,-78.17221914,0.00013698,2]
[383543247,1756981912613,430.49,0.00027397,120]
[383543251,1756981962754,210.87,0.00012329,2]
[383543252,1756981973521,175.73,0.00012329,2]
[383543253,1756981984460,878.67,0.00012329,2]
[383543274,1756982121760,177.01210144,0.00013025,2]
[383543276,1756982125624,900.0,0.000131,2]
[383543280,1756982145537,177.01210144,0.00013025,2]
[383543287,1756982168956,177.01210144,0.00013025,2]
[383543293,1756982191593,177.01210144,0.00013025,2]
[383543298,1756982215022,177.01210144,0.00013025,2]
[383543301,1756982230713,177.01210144,0.00013025,2]
[383543306,1756982255174,177.01210144,0.00013025,2]
[383543309,1756982277696,177.01210144,0.00013025,2]
[383543313,1756982301205,110.20453499,0.00013025,2]
[383543314,1756982301228,66.80756645,0.00013025,2]
[383543315,1756982323961,177.01210144,0.00013025,2]
[383543319,1756982347990,177.01210144,0.00013025,2]
[383543320,1756982351903,755.69352235,0.00012857,2]
[383543321,1756982354261,3019.7513153,0.00012857,2]
[383543323,1756982370191,177.01210144,0.00013025,2]
[383543327,1756982393518,177.01210144,0.00013025,2]
[383543331,1756982416474,177.01210144,0.00013025,2]
[383543333,1756982424828,177.01210144,0.00013025,2]
[383543337,1756982450804,177.01210144,0.00013025,2]
[383543343,1756982486163,168.0,0.00013076,2]
[383543364,1756982642210,177.01210144,0.00013025,2]
[383543368,1756982659876,224.60347806,0.00012988,2]
[383543369,1756982666526,168.0,0.00013083,2]
[383543370,1756982675163,168.0,0.00013083,2]
[383543371,1756982691226,168.0,0.00013083,2]
[383543372,1756982694462,370.0,0.00013058,2]
[383543373,1756982699435,168.0,0.00013083,2]
[383543374,1756982704890,370.0,0.00012848,2]
[383543375,1756982709421,370.0,0.00012994,2]
[383543376,1756982714069,370.0,0.00012965,2]
[383543377,1756982715350,168.0,0.00013083,2]
[383543378,1756982724371,370.0,0.00012984,2]
[383543379,1756982729873,370.0,0.00012855,2]
[383543380,1756982739018,168.0,0.00012893,2]
[383543381,1756982739270,370.0,0.00012975,2]
[383543382,1756982762472,370.0,0.00012975,2]
[383543386,1756982786059,370.0,0.00012975,2]
[383543388,1756982809181,11.05730632,0.00012975,2]
[383543389,1756982809207,358.94269368,0.00012975,2]
[383543390,1756982824671,671.54642209,0.000131,2]
[383543391,1756982826171,559.62201841,0.000131,2]
[383543392,1756982827871,466.351682,0.000131,2]
[383543393,1756982829464,388.62640167,0.000131,2]
[383543394,1756982831161,323.85533473,0.000131,2]
[383543395,1756982832052,177.01210144,0.00012971,2]
[383543396,1756982832764,269.8794456,0.000131,2]
[383543397,1756982834382,224.899538,0.000131,2]
[383543398,1756982836272,187.41628167,0.000131,2]
[383543399,1756982837778,156.18023473,0.000131,2]
[383543400,1756982839070,151.0,0.000131,2]
[383543401,1756982855218,177.01210144,0.00012971,2]
[383543402,1756982878484,177.01210144,0.00012971,2]
[383543406,1756982901651,177.01210144,0.00012971,2]
[383543407,1756982925901,177.01210144,0.00012971,2]
[383543408,1756982948793,177.01210144,0.00012971,2]
[383543409,1756982971816,177.01210144,0.00012971,2]
[383543410,1756982995616,177.01210144,0.00012971,2]
[383543414,1756983019047,177.01210144,0.00012971,2]
[383543456,1756983031975,-177.01210144,0.00013102,2]
[383543458,1756983031985,-370.0,0.00013106,2]
[383543460,1756983031995,-370.0,0.00013202,2]
[383543461,1756983032004,-205.75114244,0.00013207,2]
[383543463,1756983032014,-168.0,0.00013215,2]
[383543464,1756983032023,-1112.0,0.00013218,2]
[383543465,1756983032033,-370.0,0.0001322,2]
[383543466,1756983032043,-370.0,0.00013271,2]
[383543467,1756983032052,-370.0,0.00013329,2]
[383543468,1756983032062,-4011.67077484,0.0001339,2]
[383543469,1756983032071,-177.0,0.00013395,2]
[383543470,1756983032081,-1200.0,0.00013492,2]
[383543471,1756983032090,-2188.94581633,0.00013493,2]
[383543472,1756983032099,-300.0,0.00013586,2]
[383543473,1756983032110,-300.0,0.00013586,2]
[383543474,1756983032119,-500.0,0.00013588,2]
[383543475,1756983032128,-500.0,0.00013588,2]
[383543476,1756983032138,-395.50459526,0.00013588,2]
[383543477,1756983032147,-36914.22822169,0.00013589,2]
[383543481,1756983037871,-12433.64209343,0.00013589,2]
[383543482,1756983037883,-652.12968488,0.00013589,2]
[383543483,1756983037893,-1200.0,0.00013593,2]
[383543484,1756983037902,-656.935,0.00013598,2]
[383543485,1756983037912,-255.36986616,0.00013598,2]
[383543486,1756983037921,-2734.00124262,0.00013598,2]
[383543487,1756983037931,-1000.0,0.00013598,2]
[383543488,1756983037940,-439.04411635,0.00013689,2]
[383543494,1756983043151,-251.62779434,0.00013552,2]
[383543495,1756983043163,-552.47360005,0.00013552,2]
[383543500,1756983046145,-1019.7209802,0.00013552,2]
[383543501,1756983046157,-1889.67924,0.00013552,2]
[383543502,1756983046170,-311.97456079,0.00013552,2]
[383543503,1756983046180,-60.95588365,0.00013689,2]
[383543504,1756983046189,-37.49455556,0.00013689,2]
[383543505,1756983046201,-462.50544444,0.00013689,2]
[383543506,1756983046211,-500.0,0.00013689,2]
[383543507,1756983046220,-141.49255576,0.00013689,2]
[383543514,1756983193733,3000.0,0.00025,30]
[383543524,1756983454869,666.0,0.00012671,2]
[383543526,1756983601103,516.36728634,0.00029765,60]
[383543528,1756983664930,525.548,0.00013025,2]
[383543530,1756983888614,500.0,0.00012971,2]
[383543531,1756983911750,500.0,0.00012971,2]
[383543532,1756983935344,500.0,0.00012971,2]
[383543533,1756983958845,500.0,0.00012971,2]
[383543534,1756983981515,500.0,0.00012971,2]
[383543535,1756984005158,500.0,0.00012971,2]
[383543537,1756984028160,457.03303446,0.00012971,2]
[383543538,1756984028185,42.96696554,0.00012971,2]
[383543539,1756984051583,500.0,0.00012971,2]
[383543540,1756984075528,500.0,0.00012971,2]
[383543541,1756984098730,500.0,0.00012971,2]
[383543548,1756984122194,500.0,0.00012971,2]
[383543550,1756984145029,500.0,0.00012971,2]
[383543559,1756984167809,500.0,0.00012971,2]
[383543560,1756984190738,500.0,0.00012971,2]
[383543563,1756984214925,500.0,0.00012971,2]
[383543593,1756984236798,-500.0,0.00013102,2]
[383543594,1756984236808,-431.74453768,0.0001359,2]
[383543595,1756984236818,-1200.0,0.00013593,2]
[383543596,1756984236827,-500.0,0.00013594,2]
[383543597,1756984236837,-500.0,0.00013594,2]
[383543598,1756984236846,-186.46136602,0.00013594,2]
[383543599,1756984236855,-481.7940963,0.00013594,2]
[383543600,1756984236905,-18.2059037,0.00013594,2]
[383543601,1756984236914,-500.0,0.00013594,2]
[383543602,1756984236923,-500.0,0.00013594,2]
[383543603,1756984236937,-500.0,0.00013594,2]
[383543604,1756984236946,-500.0,0.00013594,2]
[383543605,1756984236955,-1200.0,0.00013594,2]
[383543606,1756984236965,-300.0,0.00013594,2]
[383543607,1756984236976,-300.0,0.00013594,2]
[383543608,1756984236985,-300.0,0.00013594,2]
[383543609,1756984236995,-300.0,0.00013594,2]
[383543610,1756984237005,-300.0,0.00013594,2]
[383543611,1756984237014,-39359.0573019,0.00013595,2]
[383543612,1756984237030,-10640.9426981,0.00013595,2]
[383543613,1756984237041,-525.548,0.00013598,2]
[383543614,1756984237051,-2934.89344792,0.00013598,2]
[383543615,1756984237060,-2175.6507646,0.00013598,2]
[383543616,1756984237070,-1000.0,0.00013598,2]
[383543617,1756984237079,-302.00000001,0.00013598,2]
[383543618,1756984237089,-500.0,0.00013666,2]
[383543619,1756984237101,-2934.89344788,0.00013667,2]
[383543620,1756984237111,-151.0,0.00013689,2]
[383543621,1756984237121,-151.0,0.0001369,2]
[383543622,1756984237132,-151.0,0.0001369,2]
[383543623,1756984237142,-151.0,0.0001369,2]
[383543624,1756984237154,-151.0,0.0001369,2]
[383543625,1756984237166,-151.0,0.0001369,2]
[383543626,1756984237176,-287.02588908,0.0001369,2]
[383543627,1756984237186,-187.78006525,0.0001369,2]
[383543628,1756984237195,-151.0,0.0001369,2]
[383543629,1756984237205,-500.0,0.00013697,2]
[383543630,1756984237214,-500.0,0.00013697,2]
[383543631,1756984237224,-500.0,0.00013697,2]
[383543632,1756984237234,-500.0,0.00013697,2]
[383543633,1756984237243,-500.0,0.00013697,2]
[383543634,1756984237253,-500.0,0.00013697,2]
[383543635,1756984237263,-500.0,0.00013697,2]
[383543636,1756984237273,-500.0,0.00013697,2]
[383543637,1756984237282,-500.0,0.00013697,2]
[383543638,1756984237292,-593.00240644,0.00013697,2]
[383543639,1756984237301,-9872.384509,0.00013698,2]
[383543640,1756984237311,-3624.3180452,0.00013698,2]
[383543641,1756984237321,-2368.5035615,0.00013698,2]
[383543642,1756984237330,-480.0,0.00013698,2]
[383543643,1756984237340,-480.0,0.00013698,2]
[383543644,1756984237350,-480.0,0.00013698,2]
[383543645,1756984237361,-480.0,0.00013698,2]
[383543646,1756984237371,-481.11402421,0.00013698,2]
[383543647,1756984237381,-480.0,0.00013698,2]
[383543648,1756984237390,-501.47277062,0.00013698,2]
[383543649,1756984237401,-482.24726461,0.00013698,2]
[383543650,1756984237411,-430.23778818,0.00013698,2]
[383543651,1756984237421,-482.4298729,0.00013698,2]
[383543652,1756984237430,-480.0,0.00013698,2]
[383543653,1756984237440,-480.46495525,0.00013698,2]
[383543654,1756984237449,-480.0,0.00013698,2]
[383543655,1756984237459,-423.64201405,0.00013698,2]
[383543656,1756984237468,-480.0,0.00013698,2]
[383543657,1756984237477,-482.19858267,0.00013698,2]
[383543658,1756984237592,-482.01733754,0.00013698,2]
[383543659,1756984237603,-559.71236403,0.00013698,2]
[383543660,1756984237613,-480.0,0.00013698,2]
[383543661,1756984237623,-233.9204,0.00013698,2]
[383543662,1756984237635,-233.9204,0.00013698,2]
[383543663,1756984237645,-461.01297415,0.00013698,2]
[383543664,1756984237655,-233.9204,0.00013698,2]
[383543665,1756984237666,-233.9204,0.00013698,2]
[383543666,1756984237676,-233.9204,0.00013698,2]
[383543667,1756984237686,-233.9204,0.00013698,2]
[383543668,1756984237696,-233.9204,0.00013698,2]
[383543669,1756984237706,-151.0,0.00013698,2]
[383543670,1756984237717,-233.9204,0.00013698,2]
[383543671,1756984237727,-151.0,0.00013698,2]
[383543672,1756984237737,-233.9204,0.00013698,2]
[383543674,1756984237746,-151.0,0.00013698,2]
[383543676,1756984237755,-233.9204,0.00013698,2]
[383543678,1756984237765,-151.0,0.00013698,2]
[383543680,1756984237775,-480.0,0.00013698,2]
[383543682,1756984237785,-233.9204,0.00013698,2]
[383543684,1756984237795,-151.0,0.00013698,2]
[383543686,1756984237805,-233.9204,0.00013698,2]
[383543688,1756984237814,-151.0,0.00013698,2]
[383543690,1756984237824,-480.0,0.00013698,2]
[383543692,1756984237833,-233.9204,0.00013698,2]
[383543693,1756984237843,-151.0,0.00013698,2]
[383543694,1756984237852,-233.9204,0.00013698,2]
[383543695,1756984237862,-151.0,0.00013698,2]
[383543696,1756984237871,-233.9204,0.00013698,2]
[383543697,1756984237880,-284.2095,0.00013698,2]
[383543698,1756984237892,-233.9204,0.00013698,2]
[383543699,1756984237901,-233.9204,0.00013698,2]
[383543700,1756984237911,-480.0,0.00013698,2]
[383543701,1756984237921,-233.9204,0.00013698,2]
[383543702,1756984237936,-233.9204,0.00013698,2]
[383543703,1756984237946,-233.92040416,0.00013698,2]
[383543705,1756984237955,-480.0,0.00013698,2]
[383543707,1756984237965,-481.19277718,0.00013698,2]
[383543709,1756984237974,-480.0,0.00013698,2]
[383543711,1756984237984,-484.37821763,0.00013698,2]
[383543713,1756984237994,-480.0,0.00013698,2]
[383543715,1756984238005,-480.0,0.00013698,2]
[383543717,1756984238014,-500.0,0.00013698,2]
[383543719,1756984238024,-500.0,0.00013698,2]
[383543721,1756984238033,-453.25958252,0.00013698,2]
[383543723,1756984238043,-480.0,0.00013698,2]
[383543725,1756984238053,-163.80731984,0.00013698,2]
[383543727,1756984238062,-480.0,0.00013698,2]
[383543729,1756984238072,-480.0,0.00013698,2]
[383543731,1756984238082,-480.0,0.00013698,2]
[383543733,1756984238092,-483.82645194,0.00013698,2]
[383543735,1756984238101,-151.851074,0.00013698,2]
[383543737,1756984238111,-480.0,0.00013698,2]
[383543739,1756984238120,-486.14518979,0.00013698,2]
[383543741,1756984238130,-151.0,0.00013698,2]
[383543743,1756984238140,-480.0,0.00013698,2]
[383543745,1756984238150,-151.0,0.00013698,2]
[383543747,1756984238159,-151.0,0.00013698,2]
[383543749,1756984238169,-151.0,0.00013698,2]
[383543751,1756984238178,-151.0,0.00013698,2]
[383543753,1756984238187,-151.0,0.00013698,2]
[383543755,1756984238197,-151.0,0.00013698,2]
[383543757,1756984238207,-151.0,0.00013698,2]
[383543759,1756984238217,-151.0,0.00013698,2]
[383543761,1756984238226,-151.0,0.00013698,2]
[383543762,1756984238236,-151.0,0.00013698,2]
[383543765,1756984238246,-151.0,0.00013698,2]
[383543767,1756984238255,-152.459495,0.00013698,2]
[383543768,1756984238264,-484.14869611,0.00013698,2]
[383543770,1756984238274,-320.6312598,0.00013698,2]
[383543772,1756984238283,-466.58937359,0.00013698,2]
[383543774,1756984238292,-481.39660673,0.00013698,2]
[383543776,1756984238302,-584.16381811,0.00013698,2]
[383543777,1756984238312,-500.0,0.00013698,2]
[383543778,1756984238322,-480.0,0.00013698,2]
[383543779,1756984238332,-480.0,0.00013698,2]
[383543780,1756984238341,-424.41575119,0.00013698,2]
[383543781,1756984238351,-482.69667299,0.00013698,2]
[383543782,1756984238361,-480.0,0.00013698,2]
[383543783,1756984238370,-480.0,0.00013698,2]
[383543784,1756984238380,-484.24429529,0.00013698,2]
[383543785,1756984238390,-482.85891019,0.00013698,2]
[383543786,1756984238400,-480.0,0.00013698,2]
[383543787,1756984238409,-462.85906707,0.00013698,2]
[383543788,1756984238418,-480.0,0.00013698,2]
[383543789,1756984238427,-151.0,0.00013698,2]
[383543790,1756984238437,-151.0,0.00013698,2]
[383543791,1756984238446,-151.0,0.00013698,2]
[383543792,1756984238456,-151.0,0.00013698,2]
[383543793,1756984238466,-162.655955,0.00013698,2]
[383543794,1756984238476,-151.706798,0.00013698,2]
[383543795,1756984238485,-151.706798,0.00013698,2]
[383543796,1756984238495,-151.706798,0.00013698,2]
[383543797,1756984238505,-151.706798,0.00013698,2]
[383543798,1756984238514,-151.706798,0.00013698,2]
[383543799,1756984238523,-151.706798,0.00013698,2]
[383543800,1756984238532,-151.706798,0.00013698,2]
[383543801,1756984238542,-151.706798,0.00013698,2]
[383543802,1756984238551,-151.706798,0.00013698,2]
[383543803,1756984238560,-151.706798,0.00013698,2]
[383543804,1756984238570,-151.706798,0.00013698,2]
[383543805,1756984238579,-151.706798,0.00013698,2]
[383543806,1756984238588,-151.706798,0.00013698,2]
[383543807,1756984238597,-151.706798,0.00013698,2]
[383543808,1756984238606,-151.706798,0.00013698,2]
[383543809,1756984238616,-151.706798,0.00013698,2]
[383543810,1756984238626,-151.706798,0.00013698,2]
[383543811,1756984238636,-151.706798,0.00013698,2]
[383543812,1756984238645,-151.706798,0.00013698,2]
[383543813,1756984238655,-151.706788,0.00013698,2]
[383543814,1756984238665,-245.31603694,0.00013698,2]
[383543815,1756984238674,-480.0,0.00013698,2]
[383543816,1756984238684,-480.0,0.00013698,2]
[383543817,1756984238694,-480.0,0.00013698,2]
[383543818,1756984238704,-151.0,0.00013698,2]
[383543819,1756984238713,-151.0,0.00013698,2]
[383543820,1756984238723,-151.0,0.00013698,2]
[383543821,1756984238732,-480.0,0.00013698,2]
[383543822,1756984238742,-332.99843377,0.00013698,2]
[383543823,1756984238751,-480.0,0.00013698,2]
[383543824,1756984238761,-158.680305,0.00013698,2]
[383543825,1756984238770,-482.8331528,0.00013698,2]
[383543826,1756984238780,-151.0,0.00013698,2]
[383543827,1756984238789,-151.0,0.00013698,2]
[383543828,1756984238799,-480.0,0.00013698,2]
[383543829,1756984238808,-151.0,0.00013698,2]
[383543830,1756984238817,-151.0,0.00013698,2]
[383543831,1756984238826,-253.80269075,0.00013698,2]
[383543832,1756984238836,-151.0,0.00013698,2]
[383543833,1756984238845,-151.0,0.00013698,2]
[383543834,1756984238854,-151.0,0.00013698,2]
[383543835,1756984238863,-151.0,0.00013698,2]
[383543836,1756984238873,-151.0,0.00013698,2]
[383543837,1756984238883,-151.0,0.00013698,2]
[383543838,1756984238893,-286.377505,0.00013698,2]
[383543839,1756984238903,-480.0,0.00013698,2]
[383543840,1756984238912,-480.0,0.00013698,2]
[383543841,1756984238921,-480.0,0.00013698,2]
[383543842,1756984238932,-480.0,0.00013698,2]
[383543843,1756984238942,-480.0,0.00013698,2]
[383543844,1756984238951,-480.0,0.00013698,2]
[383543845,1756984238960,-480.0,0.00013698,2]
[383543846,1756984238971,-483.09885959,0.00013698,2]
[383543847,1756984238980,-480.0,0.00013698,2]
[383543848,1756984238990,-486.08381917,0.00013698,2]
[383543849,1756984238999,-175.12237563,0.00013698,2]
[383543850,1756984239010,-480.0,0.00013698,2]
[383543851,1756984239020,-487.03895545,0.00013698,2]
[383543852,1756984239029,-488.09684154,0.00013698,2]
[383543853,1756984239039,-486.81729452,0.00013698,2]
[383543854,1756984239048,-480.0,0.00013698,2]
[383543855,1756984239058,-480.0,0.00013698,2]
[383543856,1756984239068,-486.09335672,0.00013698,2]
[383543857,1756984239079,-480.0,0.00013698,2]
[383543858,1756984239089,-488.65118676,0.00013698,2]
[383543859,1756984239099,-480.0,0.00013698,2]
[383543860,1756984239109,-480.0,0.00013698,2]
[383543861,1756984239119,-482.69700786,0.00013698,2]
[383543862,1756984239129,-483.7357212,0.00013698,2]
[383543863,1756984239139,-480.0,0.00013698,2]
[383543864,1756984239149,-482.24643197,0.00013698,2]
[383543865,1756984239158,-151.0,0.00013698,2]
[383543866,1756984239168,-153.278175,0.00013698,2]
[383543867,1756984239264,-480.0,0.00013698,2]
[383543868,1756984239274,-480.0,0.00013698,2]
[383543869,1756984239284,-487.44192266,0.00013698,2]
[383543870,1756984239293,-480.0,0.00013698,2]
[383543871,1756984239302,-480.0,0.00013698,2]
[383543872,1756984239312,-483.76931875,0.00013698,2]
[383543873,1756984239322,-480.0,0.00013698,2]
[383543874,1756984239332,-480.0,0.00013698,2]
[383543875,1756984239341,-480.0,0.00013698,2]
[383543876,1756984239351,-481.56602776,0.00013698,2]
[383543877,1756984239360,-480.0,0.00013698,2]
[383543878,1756984239369,-1000.0,0.00013698,2]
[383543879,1756984239378,-480.0,0.00013698,2]
[383543880,1756984239388,-480.0,0.00013698,2]
[383543881,1756984239397,-483.5815512,0.00013698,2]
[383543882,1756984239407,-481.47079174,0.00013698,2]
[383543883,1756984239416,-482.87999591,0.00013698,2]
[383543884,1756984239426,-480.0,0.00013698,2]
[383543885,1756984239435,-151.0,0.00013698,2]
[383543886,1756984239446,-151.0,0.00013698,2]
[383543887,1756984239455,-151.0,0.00013698,2]
[383543888,1756984239465,-151.0,0.00013698,2]
[383543889,1756984239475,-151.0,0.00013698,2]
[383543890,1756984239485,-151.0,0.00013698,2]
[383543891,1756984239494,-151.0,0.00013698,2]
[383543892,1756984239504,-151.0,0.00013698,2]
[383543893,1756984239514,-151.0,0.00013698,2]
[383543894,1756984239523,-151.0,0.00013698,2]
[383543895,1756984239533,-151.0,0.00013698,2]
[383543896,1756984239542,-151.0,0.00013698,2]
[383543897,1756984239552,-151.0,0.00013698,2]
[383543898,1756984239562,-151.0,0.00013698,2]
[383543899,1756984239571,-151.0,0.00013698,2]
[383543900,1756984239581,-151.0,0.00013698,2]
[383543901,1756984239590,-480.0,0.00013698,2]
[383543902,1756984239599,-151.0,0.00013698,2]
[383543903,1756984239608,-151.0,0.00013698,2]
[383543904,1756984239618,-222.799,0.00013698,2]
[383543905,1756984239628,-480.0,0.00013698,2]
[383543906,1756984239638,-480.0,0.00013698,2]
[383543907,1756984239647,-480.0,0.00013698,2]
[383543908,1756984239657,-151.0,0.00013698,2]
[383543909,1756984239667,-151.0,0.00013698,2]
[383543910,1756984239676,-480.0,0.00013698,2]
[383543911,1756984239686,-151.0,0.00013698,2]
[383543912,1756984239695,-151.0,0.00013698,2]
[383543913,1756984239705,-151.0,0.00013698,2]
[383543914,1756984239715,-151.0,0.00013698,2]
[383543915,1756984239725,-480.0,0.00013698,2]
[383543916,1756984239734,-481.9804029,0.00013698,2]
[383543918,1756984239744,-480.0,0.00013698,2]
[383543919,1756984239753,-482.19136913,0.00013698,2]
[383543920,1756984239763,-480.0,0.00013698,2]
[383543921,1756984239772,-480.0,0.00013698,2]
[383543922,1756984239781,-483.06744069,0.00013698,2]
[383543923,1756984239791,-480.0,0.00013698,2]
[383543924,1756984239800,-481.38824484,0.00013698,2]
[383543925,1756984239809,-480.0,0.00013698,2]
[383543926,1756984239819,-480.93593768,0.00013698,2]
[383543927,1756984239828,-481.15596378,0.00013698,2]
[383543928,1756984239838,-480.0,0.00013698,2]
[383543930,1756984239847,-480.0,0.00013698,2]
[383543931,1756984239857,-480.0,0.00013698,2]
[383543932,1756984239867,-480.0,0.00013698,2]
[383543933,1756984239876,-452.12532263,0.00013698,2]
[383543934,1756984239886,-523.74955048,0.00013698,2]
[383543935,1756984239895,-480.0,0.00013698,2]
[383543936,1756984239905,-482.10584631,0.00013698,2]
[383543937,1756984239914,-480.0,0.00013698,2]
[383543938,1756984239925,-480.0,0.00013698,2]
[383543939,1756984239938,-480.0,0.00013698,2]
[383543940,1756984239947,-480.0,0.00013698,2]
[383543941,1756984239957,-480.0,0.00013698,2]
[383543942,1756984239966,-480.0,0.00013698,2]
[383543943,1756984239977,-480.0,0.00013698,2]
[383543944,1756984239987,-151.0,0.00013698,2]
[383543945,1756984239997,-484.39814575,0.00013698,2]
[383543946,1756984240009,-151.0,0.00013698,2]
[383543947,1756984240018,-295.667208,0.00013698,2]
[383543948,1756984240028,-480.0,0.00013698,2]
[383543949,1756984240038,-480.0,0.00013698,2]
[383543950,1756984240047,-151.0,0.00013698,2]
[383543951,1756984240057,-151.0,0.00013698,2]
[383543952,1756984240066,-480.0,0.00013698,2]
[383543953,1756984240076,-151.0,0.00013698,2]
[383543954,1756984240085,-480.0,0.00013698,2]
[383543955,1756984240095,-151.0,0.00013698,2]
[383543957,1756984240105,-151.0,0.00013698,2]
[383543958,1756984240114,-151.0,0.00013698,2]
[383543959,1756984240123,-151.0,0.00013698,2]
[383543960,1756984240134,-169.687745,0.00013698,2]
[383543961,1756984240143,-312.09443923,0.00013698,2]
[383543962,1756984240153,-480.0,0.00013698,2]
[383543963,1756984240163,-480.0,0.00013698,2]
[383543964,1756984240173,-151.0,0.00013698,2]
[383543965,1756984240182,-151.0,0.00013698,2]
[383543966,1756984240192,-151.0,0.00013698,2]
[383543967,1756984240202,-151.0,0.00013698,2]
[383543968,1756984240212,-151.0,0.00013698,2]
[383543969,1756984240222,-151.0,0.00013698,2]
[383543970,1756984240231,-480.0,0.00013698,2]
[383543971,1756984240240,-151.0,0.00013698,2]
[383543972,1756984240250,-480.0,0.00013698,2]
[383543973,1756984240260,-480.0,0.00013698,2]
[383543974,1756984240270,-565.60466085,0.00013698,2]
[383543975,1756984240281,-285.750273,0.00013698,2]
[383543976,1756984240291,-482.91359621,0.00013698,2]
[383543977,1756984240301,-285.750273,0.00013698,2]
[383543978,1756984240312,-285.750273,0.00013698,2]
[383543979,1756984240322,-285.750273,0.00013698,2]
[383543980,1756984240332,-285.750273,0.00013698,2]
[383543981,1756984240342,-285.750273,0.00013698,2]
[383543982,1756984240359,-285.750273,0.00013698,2]
[383543983,1756984240368,-285.750273,0.00013698,2]
[383543984,1756984240377,-285.750273,0.00013698,2]
[383543985,1756984240388,-480.0,0.00013698,2]
[383543986,1756984240398,-285.750273,0.00013698,2]
[383543987,1756984240408,-285.750273,0.00013698,2]
[383543988,1756984240417,-285.750273,0.00013698,2]
[383543989,1756984240426,-285.750273,0.00013698,2]
[383543990,1756984240436,-285.750273,0.00013698,2]
[383543991,1756984240445,-285.750273,0.00013698,2]
[383543992,1756984240455,-285.750273,0.00013698,2]
[383543993,1756984240465,-285.750273,0.00013698,2]
[383543994,1756984240475,-285.750273,0.00013698,2]
[383543995,1756984240485,-285.750273,0.00013698,2]
[383543996,1756984240494,-285.750279,0.00013698,2]
[383543997,1756984240504,-480.0,0.00013698,2]
[383543998,1756984240514,-182.942329,0.00013698,2]
[383543999,1756984240523,-182.942329,0.00013698,2]
[383544000,1756984240533,-182.942329,0.00013698,2]
[383544001,1756984240543,-480.0,0.00013698,2]
[383544002,1756984240553,-182.942329,0.00013698,2]
[383544003,1756984240563,-182.942329,0.00013698,2]
[383544004,1756984240573,-182.942329,0.00013698,2]
[383544005,1756984240583,-182.942329,0.00013698,2]
[383544006,1756984240592,-151.0,0.00013698,2]
[383544007,1756984240602,-182.942329,0.00013698,2]
[383544008,1756984240611,-151.0,0.00013698,2]
[383544009,1756984240621,-480.0,0.00013698,2]
[383544010,1756984240631,-480.0,0.00013698,2]
[383544011,1756984240642,-182.942329,0.00013698,2]
[383544012,1756984240651,-151.0,0.00013698,2]
[383544013,1756984240661,-480.0,0.00013698,2]
[383544014,1756984240671,-182.942329,0.00013698,2]
[383544015,1756984240682,-151.0,0.00013698,2]
[383544016,1756984240691,-182.942329,0.00013698,2]
[383544017,1756984240701,-151.0,0.00013698,2]